bitfinex/quotes_BTCUSD_20240731
["timestamp","ask_amount","ask_price","bid_price","bid_amount"]
[1722435681530,0.002,66530.0,66529.0,0.1]
[1722435681531,0.17092256,66530.0,66529.0,0.1]
[1722435681743,0.17092256,66530.0,66520.0,0.0616]
[1722435681744,0.002,66518.0,66514.0,0.215]
[1722435681980,0.002,66518.0,66514.0,0.150343]
[1722435681981,0.002,66515.0,66514.0,0.150343]
[1722435682193,0.06919811,66515.0,66514.0,0.751719]
[1722435682407,0.09159749,66515.0,66514.0,0.451031]
[1722435682624,0.002,66515.0,66514.0,0.150343]
[1722435682859,0.11399686,66515.0,66514.0,0.751719]
[1722435683077,0.002,66515.0,66514.0,0.751719]
[1722435683505,0.09152408,66515.0,66514.0,0.751719]
[1722435683715,0.09152408,66515.0,66508.0,0.215]
[1722435683926,0.09152408,66515.0,66506.0,0.4521]
[1722435683927,0.002,66507.0,66506.0,0.4521]
[1722435684136,0.002,66510.0,66509.0,0.150355]
[1722435684350,0.09147204,66510.0,66509.0,0.150355]
[1722435684564,0.002,66509.0,66508.0,0.150357]
[1722435684991,0.06906864,66510.0,66509.0,0.150355]
[1722435685204,0.06706864,66510.0,66509.0,0.451066]
[1722435685413,0.06706864,66512.0,66511.0,0.451053]
[1722435685621,0.06706864,66513.0,66512.0,0.150348]
[1722435685835,0.06706864,66513.0,66512.0,0.751742]
[1722435686013,0.06706864,66513.0,66512.0,0.54373378]
[1722435686259,0.06706864,66513.0,66512.0,0.751742]
[1722435686480,0.04468224,66513.0,66512.0,0.751742]
[1722435687604,0.04668729,66514.0,66513.0,0.451039]
[1722435688258,0.002,66514.0,66513.0,0.451039]
[1722435688478,0.002,66514.0,66513.0,0.7680489]
[1722435688686,0.002,66514.0,66513.0,0.4673559]
[1722435689132,0.003,66514.0,66513.0,0.1786629]
[1722435689344,0.003,66514.0,66513.0,0.4793559]
[1722435690180,0.003,66514.0,66513.0,0.4903559]
[1722435692309,0.003,66514.0,66513.0,0.0393169]
[1722435692517,0.003,66514.0,66513.0,0.023]
[1722435692929,0.003,66514.0,66513.0,0.03665002]
[1722435693578,0.003,66514.0,66513.0,0.48768902]
[1722435693795,0.001,66514.0,66513.0,0.78838202]
[1722435694229,0.003,66514.0,66513.0,0.18699602]
[1722435694443,0.003,66514.0,66513.0,0.48768902]
[1722435694656,0.003,66514.0,66513.0,0.18699602]
[1722435694868,0.003,66514.0,66513.0,0.48768902]
[1722435695085,0.003,66514.0,66513.0,0.18699602]
[1722435695315,0.003,66514.0,66513.0,0.48768902]
[1722435696423,0.003,66514.0,66513.0,0.03665002]
[1722435698141,0.27379255,66514.0,66513.0,0.03665002]
[1722435698350,1.29870325,66514.0,66513.0,0.03665002]
[1722435698562,1.29870325,66514.0,66513.0,0.023]
[1722435698563,1.31782848,66514.0,66513.0,0.023]
[1722435698773,1.40702693,66514.0,66513.0,0.023]
[1722435699030,1.55550823,66514.0,66513.0,0.011]
[1722435699236,1.55550823,66514.0,66488.0,0.159709]
[1722435699237,0.002,66489.0,66488.0,0.159709]
[1722435699459,0.002,66489.0,66488.0,0.009306]
[1722435699682,0.002,66489.0,66488.0,0.02377568]
[1722435699902,0.002,66489.0,66488.0,0.009306]
[1722435700123,0.002,66489.0,66488.0,0.02377568]
[1722435700356,0.002,66489.0,66488.0,0.009306]
[1722435701235,1.01824019,66489.0,66488.0,0.009306]
[1722435701480,0.73541636,66489.0,66488.0,0.009306]
[1722435701687,0.39582178,66489.0,66488.0,0.020306]
[1722435701926,0.24442178,66489.0,66488.0,0.009306]
[1722435702151,0.24442178,66489.0,66488.0,0.013306]
[1722435702372,0.43530316,66489.0,66488.0,0.023306]
[1722435702596,1.33770616,66489.0,66488.0,0.023306]
[1722435702824,1.33670616,66489.0,66488.0,0.013306]
[1722435703046,1.35657639,66489.0,66488.0,0.017306]
[1722435703478,1.39880905,66489.0,66488.0,0.017306]
[1722435703913,1.35662785,66489.0,66488.0,0.017306]
[1722435704370,1.33670616,66489.0,66488.0,0.017306]
[1722435705009,1.35663922,66489.0,66488.0,0.013306]
[1722435705448,1.34770616,66489.0,66488.0,0.010306]
[1722435705669,1.34370616,66489.0,66488.0,0.010306]
[1722435705893,1.6642738,66489.0,66488.0,0.010306]
[1722435706107,1.6642738,66489.0,66476.0,0.009306]
[1722435706108,1.147182,66482.0,66476.0,0.009306]
[1722435706314,1.92422979,66482.0,66476.0,0.009306]
[1722435706536,2.04528357,66482.0,66476.0,0.009306]
[1722435706779,2.08684717,66482.0,66476.0,0.009306]
[1722435707230,2.08684717,66482.0,66446.0,0.009306]
[1722435707231,0.90214,66468.0,66446.0,0.009306]
[1722435707439,1.30563372,66468.0,66463.0,0.44858472]
[1722435707647,1.63120867,66468.0,66446.0,0.009306]
[1722435707862,1.63120867,66468.0,66467.0,0.01971377]
[1722435708078,1.33031267,66468.0,66467.0,0.009306]
[1722435708334,1.02941667,66468.0,66467.0,0.009306]
[1722435708756,1.33031267,66468.0,66467.0,0.009306]
[1722435709185,0.90139213,66468.0,66467.0,0.009306]
[1722435709414,0.52194572,66468.0,66467.0,0.010306]
[1722435709672,0.25749772,66468.0,66467.0,0.010306]
[1722435709885,0.300864,66476.0,66468.0,0.146448]
[1722435709886,0.002,66469.0,66468.0,0.146448]
[1722435710109,0.002,66469.0,66468.0,0.447344]
[1722435710320,0.002,66473.0,66472.0,0.150439]
[1722435710977,0.002,66473.0,66472.0,0.46171604]
[1722435711222,0.002,66473.0,66472.0,0.01039904]
[1722435711439,0.002,66479.0,66474.0,0.150434]
[1722435711646,0.001,66477.0,66474.0,0.300869]
[1722435711887,0.0025542,66478.0,66477.0,0.150427]
[1722435711888,0.0035542,66478.0,66477.0,0.150427]
[1722435712110,0.125603,66488.0,66478.0,0.451276]
[1722435712111,0.002,66479.0,66478.0,0.451276]
[1722435712327,0.002,66483.0,66482.0,0.451249]
[1722435712753,0.002,66483.0,66477.0,0.01039032]
[1722435712754,0.002,66485.0,66484.0,0.451236]
[1722435713001,0.002,66485.0,66482.0,0.0103816]
[1722435713247,0.002,66485.0,66484.0,0.01037811]
[1722435713492,0.002,66485.0,66483.0,0.01037986]
[1722435713724,0.002,66478.0,66477.0,0.150426]
[1722435714230,0.001,66483.0,66470.0,0.300886]
[1722435714231,0.002,66472.0,66470.0,0.300886]
[1722435714515,0.002,66472.0,66471.0,0.150441]
[1722435714740,0.0788,66479.0,66477.0,0.150427]
[1722435714741,0.002,66479.0,66477.0,0.150427]
[1722435714994,0.0015542,66478.0,66477.0,0.451282]
[1722435715200,0.0015542,66478.0,66477.0,0.752137]
[1722435715408,0.003,66483.0,66482.0,0.150416]
[1722435715851,0.003,66483.0,66472.0,0.000913]
[1722435715852,0.002,66479.0,66472.0,0.000913]
[1722435716078,0.002,66483.0,66482.0,0.451249]
[1722435716315,0.003,66485.0,66484.0,0.451236]
[1722435716548,0.002,66485.0,66484.0,0.451236]
[1722435716757,0.04081502,66491.0,66485.0,0.451228]
[1722435716758,0.002,66486.0,66485.0,0.451228]
[1722435717046,0.001,66483.0,66479.0,0.0756]
[1722435717293,0.002,66483.0,66482.0,0.453249]
[1722435717537,0.002,66483.0,66482.0,0.152416]
[1722435717736,0.002,66483.0,66482.0,0.453249]
[1722435717946,0.002,66483.0,66482.0,0.754082]
[1722435718344,0.002,66483.0,66482.0,0.76437395]
[1722435718692,0.002,66489.0,66488.0,0.451209]
[1722435719295,0.002,66489.0,66488.0,0.76129649]
[1722435719671,0.002,66491.0,66490.0,0.451195]
[1722435719893,0.002,66491.0,66490.0,0.751992]
[1722435720113,0.002,66496.0,66495.0,0.150387]
[1722435720327,0.0015542,66501.0,66491.0,0.75198]
[1722435720328,0.002,66492.0,66491.0,0.75198]
[1722435720540,0.002,66492.0,66490.0,0.010278]
[1722435720541,0.002,66495.0,66490.0,0.010278]
[1722435720772,0.002,66493.0,66491.0,0.01027626]
[1722435720978,0.002,66493.0,66488.0,0.004]
[1722435720979,0.2126,66489.0,66488.0,0.004]
[1722435721213,0.0622,66489.0,66488.0,0.004]
[1722435721428,0.08587901,66489.0,66488.0,0.004]
[1722435721646,1.01970279,66489.0,66488.0,0.004]
[1722435721855,0.26770079,66489.0,66488.0,0.005]
[1722435722526,0.24402178,66489.0,66488.0,0.005]
[1722435722739,0.002,66489.0,66488.0,0.005]
[1722435722950,0.002,66489.0,66488.0,0.155403]
[1722435723166,0.002,66489.0,66488.0,0.159403]
[1722435723379,0.30075,66501.0,66488.0,0.159403]
[1722435723380,0.002,66491.0,66490.0,0.451195]
[1722435723590,0.002,66491.0,66490.0,0.751992]
[1722435723806,0.001,66493.0,66488.0,0.009]
[1722435724024,0.002,66492.0,66488.0,0.009]
[1722435724254,0.0015542,66500.0,66494.0,0.300779]
[1722435724468,0.002,66497.0,66489.0,0.00300776]
[1722435724713,0.002,66500.0,66499.0,0.150378]
[1722435725163,0.002,66500.0,66499.0,0.451134]
[1722435725392,0.0015542,66507.0,66506.0,0.150362]
[1722435725393,0.0035542,66507.0,66506.0,0.150362]
[1722435725599,0.0792,66517.0,66510.0,0.150353]
[1722435725600,0.002,66511.0,66510.0,0.150353]
[1722435725827,0.002,66511.0,66506.0,0.300724]
[1722435726046,0.0976213,66516.0,66504.0,0.300733]
[1722435726047,0.002,66507.0,66504.0,0.300733]
[1722435726254,0.002,66507.0,66506.0,0.150362]
[1722435726459,0.002,66509.0,66506.0,0.300724]
[1722435726663,0.002,66509.0,66507.0,0.148359]
[1722435726870,0.002,66509.0,66505.0,0.300727]
[1722435727074,0.17238542,66516.0,66506.0,0.300723]
[1722435727075,0.002,66511.0,66506.0,0.300723]
[1722435727287,0.002,66509.0,66508.0,0.150356]
[1722435727496,0.002,66509.0,66498.0,0.0626]
[1722435727497,0.07676412,66509.0,66498.0,0.0626]
[1722435727706,0.002,66499.0,66498.0,0.45114]
[1722435727914,0.002,66497.0,66496.0,0.300769]
[1722435728121,0.15556412,66509.0,66496.0,0.023]
[1722435728122,0.002,66507.0,66496.0,0.023]
[1722435728330,0.002,66509.0,66504.0,0.300729]
[1722435728540,0.002,66509.0,66508.0,0.451072]
[1722435728753,0.002,66511.0,66510.0,0.751765]
[1722435728961,0.002,66511.0,66510.0,0.451059]
[1722435729174,0.002,66513.0,66512.0,0.150348]
[1722435729389,0.0792,66520.0,66510.0,0.300706]
[1722435729390,0.002,66517.0,66516.0,0.150339]
[1722435729818,0.002,66517.0,66508.0,0.361915]
[1722435729819,0.002,66518.0,66517.0,0.451012]
[1722435730029,0.002,66518.0,66517.0,0.150337]
[1722435730236,0.002,66518.0,66517.0,0.149337]
[1722435730451,0.002,66517.0,66513.0,0.300689]
[1722435730673,0.002,66514.0,66511.0,0.300699]
[1722435730882,0.002,66514.0,66513.0,0.150346]
[1722435731086,0.002,66517.0,66516.0,0.150339]
[1722435731516,0.002,66513.0,66512.0,0.451044]
[1722435731725,0.002,66511.0,66510.0,0.158353]
[1722435732142,0.002,66511.0,66510.0,0.008]
[1722435732349,0.002,66511.0,66510.0,0.158353]
[1722435732553,0.002,66511.0,66508.0,0.150356]
[1722435732756,0.002,66507.0,66506.0,0.150362]
[1722435732963,0.151335,66518.0,66507.0,0.45108]
[1722435732964,0.002,66508.0,66507.0,0.45108]
[1722435733173,0.002,66507.0,66506.0,0.150362]
[1722435733386,0.09750828,66517.0,66506.0,0.150362]
[1722435733387,0.002,66509.0,66508.0,0.150357]
[1722435733592,0.002,66509.0,66508.0,0.451072]
[1722435733796,0.002,66509.0,66507.0,0.15036]
[1722435734001,0.002,66509.0,66508.0,0.01005695]
[1722435734418,0.002,66510.0,66509.0,0.150355]
[1722435734625,0.002,66510.0,66508.0,0.01005695]
[1722435734827,0.002,66510.0,66506.0,0.30072]
[1722435734828,0.002,66510.0,66509.0,0.1604102]
[1722435735476,0.002,66514.0,66513.0,0.451039]
[1722435735720,0.0758,66527.0,66518.0,0.30067]
[1722435735953,0.11928059,66530.0,66518.0,0.30067]
[1722435735954,0.002,66524.0,66523.0,0.150323]
[1722435736157,0.00152307,66526.0,66518.0,0.0624]
[1722435736158,0.00152307,66526.0,66525.0,0.150319]
[1722435736376,0.002,66527.0,66523.0,0.01003699]
[1722435736600,0.07676412,66526.0,66524.0,0.01003525]
[1722435736826,0.14967641,66525.0,66513.0,0.013]
[1722435737115,0.002,66515.0,66514.0,0.75172]
[1722435737327,0.002,66515.0,66514.0,0.46103663]
[1722435737770,0.002,66515.0,66514.0,0.16034863]
[1722435738285,0.002,66515.0,66514.0,0.46103663]
[1722435738539,0.002,66515.0,66514.0,0.01000463]
[1722435738771,0.002,66515.0,66514.0,0.16034863]
[1722435739014,0.002,66515.0,66514.0,0.31069263]
[1722435739258,0.002,66519.0,66518.0,0.150335]
[1722435739478,0.002,66519.0,66514.0,0.01000463]
[1722435739479,0.002,66523.0,66522.0,0.150326]
[1722435739896,0.002,66523.0,66522.0,0.00990614]
[1722435740099,0.002,66523.0,66522.0,0.46088414]
[1722435740331,0.002,66523.0,66522.0,0.00990614]
[1722435740540,0.002,66523.0,66522.0,0.16023214]
[1722435740748,0.002,66522.0,66521.0,0.150328]
[1722435741164,0.002,66519.0,66518.0,0.157334]
[1722435741375,0.002,66519.0,66518.0,0.007]
[1722435741590,0.69212721,66519.0,66518.0,0.007]
[1722435741803,1.29345721,66519.0,66518.0,0.007]
[1722435742010,1.3737639,66519.0,66518.0,0.007]
[1722435742435,1.09370541,66519.0,66518.0,0.007]
[1722435742861,0.71273372,66519.0,66518.0,0.007]
[1722435743270,0.002,66504.0,66503.0,0.150368]
[1722435743482,0.002,66504.0,66503.0,0.451106]
[1722435743696,0.002,66505.0,66504.0,0.451099]
[1722435743872,0.002,66505.0,66504.0,0.150366]
[1722435744079,0.002,66505.0,66504.0,0.451099]
[1722435744696,0.002,66505.0,66504.0,0.150366]
[1722435744906,0.002,66505.0,66504.0,0.451099]
[1722435745701,0.449965,66519.0,66506.0,0.150362]
[1722435745702,0.002,66507.0,66506.0,0.150362]
[1722435745904,0.002,66507.0,66506.0,0.75181]
[1722435746105,0.002,66515.0,66506.0,0.3692817]
[1722435746308,0.002,66514.0,66513.0,0.150346]
[1722435746507,0.002,66514.0,66513.0,0.514039]
[1722435747177,0.002,66512.0,66511.0,0.15035]
[1722435747395,0.002,66507.0,66506.0,0.451083]
[1722435747605,0.002,66507.0,66506.0,0.455083]
[1722435747809,0.002,66507.0,66506.0,0.452083]
[1722435748013,0.002,66508.0,66507.0,0.45108]
[1722435748222,0.07476412,66519.0,66510.0,0.451059]
[1722435748223,0.002,66511.0,66510.0,0.451059]
[1722435748634,0.002,66513.0,66512.0,0.150348]
[1722435748839,0.001,66514.0,66513.0,0.451039]
[1722435749046,0.001,66514.0,66513.0,0.751732]
[1722435749251,0.001,66514.0,66513.0,0.46097618]
[1722435749252,0.003,66514.0,66513.0,0.46097618]
[1722435749458,0.002,66514.0,66513.0,0.76166918]
[1722435749658,0.002,66514.0,66513.0,0.46097618]
[1722435750725,0.002,66514.0,66513.0,0.47097618]
[1722435750726,0.003,66514.0,66513.0,0.47097618]
[1722435750929,0.003,66514.0,66513.0,0.48197618]
[1722435751739,0.003,66514.0,66513.0,0.18128318]
[1722435752289,0.003,66514.0,66513.0,0.03093718]
[1722435752481,0.520132,66514.0,66513.0,0.03093718]
[1722435752692,1.37018528,66514.0,66513.0,0.03093718]
[1722435752893,1.37018528,66514.0,66513.0,0.021]
[1722435753124,1.38018528,66514.0,66513.0,0.021]
[1722435753297,1.43494717,66514.0,66513.0,0.021]
[1722435753495,1.52893307,66514.0,66513.0,0.021]
[1722435753696,1.60278584,66514.0,66513.0,0.021]
[1722435754103,1.60278364,66514.0,66513.0,0.021]
[1722435754302,1.52271881,66514.0,66513.0,0.011]
[1722435754504,1.65632124,66514.0,66513.0,0.011]
[1722435754686,1.52271881,66514.0,66513.0,0.011]
[1722435754916,1.51271881,66514.0,66513.0,0.011]
[1722435755130,1.52271881,66514.0,66513.0,0.011]
[1722435755357,1.51271881,66514.0,66513.0,0.011]
[1722435755590,1.64645034,66514.0,66513.0,0.011]
[1722435755850,1.55938375,66514.0,66513.0,0.011]
[1722435756078,1.07286802,66514.0,66513.0,0.011]
[1722435756294,0.32114802,66514.0,66513.0,0.011]
[1722435756499,0.152346,66513.0,66512.0,0.000913]
[1722435756708,0.2686804,66513.0,66512.0,0.000913]
[1722435756915,0.20751915,66513.0,66512.0,0.000913]
[1722435757126,0.11006738,66513.0,66512.0,0.000913]
[1722435757373,0.08777862,66513.0,66512.0,0.01091824]
[1722435757809,0.68058726,66513.0,66512.0,0.000913]
[1722435758027,1.28197326,66513.0,66512.0,0.000913]
[1722435758237,1.36247727,66513.0,66512.0,0.005913]
[1722435758456,1.41746836,66513.0,66512.0,0.005913]
[1722435759085,1.71816136,66513.0,66512.0,0.005913]
[1722435759296,1.51746836,66513.0,66512.0,0.005913]
[1722435759501,1.51746836,66513.0,66512.0,0.000913]
[1722435759703,1.51746836,66513.0,66512.0,0.004913]
[1722435759938,1.44359464,66513.0,66512.0,0.007913]
[1722435760144,1.51780526,66513.0,66512.0,0.004913]
[1722435760356,1.51780526,66513.0,66512.0,0.000913]
[1722435760566,1.51880526,66513.0,66512.0,0.000913]
[1722435760981,1.50880526,66513.0,66512.0,0.000913]
[1722435761390,1.51880526,66513.0,66512.0,0.000913]
[1722435763142,1.66945684,66513.0,66512.0,0.000913]
[1722435763349,1.44459464,66513.0,66512.0,0.000913]
[1722435763554,1.51801722,66513.0,66512.0,0.000913]
[1722435764628,0.002,66488.0,66478.0,0.51288472]
[1722435764844,0.002,66488.0,66478.0,0.66330972]
[1722435764845,0.001,66479.0,66478.0,0.66330972]
[1722435765025,0.044644,66483.0,66480.0,0.300841]
[1722435765309,0.044644,66483.0,66479.0,0.01013875]
[1722435765310,0.046644,66483.0,66481.0,0.01013527]
[1722435765536,0.002,66482.0,66481.0,0.01013527]
[1722435765760,0.002,66482.0,66473.0,0.0618]
[1722435765761,0.002,66479.0,66473.0,0.0618]
[1722435765979,0.002,66474.0,66473.0,0.212237]
[1722435766191,0.04463735,66478.0,66473.0,0.362674]
[1722435766192,0.002,66476.0,66473.0,0.362674]
[1722435766408,0.11161,66483.0,66473.0,0.362674]
[1722435766409,0.002,66479.0,66478.0,0.006]
[1722435766915,0.04662547,66479.0,66477.0,0.150426]
[1722435767146,0.002,66481.0,66480.0,0.150421]
[1722435767386,0.04462547,66482.0,66477.0,0.150425]
[1722435767609,0.04462547,66482.0,66473.0,0.362672]
[1722435767610,0.002,66478.0,66473.0,0.376672]
[1722435767825,0.04662811,66478.0,66475.0,0.150432]
[1722435768036,0.002,66476.0,66475.0,0.150432]
[1722435768244,0.04462811,66478.0,66477.0,0.451282]
[1722435768468,0.06693776,66480.0,66477.0,0.300855]
[1722435768469,0.04462978,66480.0,66477.0,0.300855]
[1722435768685,0.04462978,66479.0,66478.0,0.451276]
[1722435768903,0.002,66479.0,66477.0,0.150427]
[1722435769119,0.002,66479.0,66473.0,0.0618]
[1722435769120,0.002,66477.0,66476.0,0.150429]
[1722435769343,0.002,66477.0,66472.0,0.000913]
[1722435769802,0.04462067,66474.0,66472.0,0.000913]
[1722435770027,0.04662067,66473.0,66472.0,0.000913]
[1722435770284,0.002,66473.0,66472.0,0.000913]
[1722435770728,0.09124135,66473.0,66472.0,0.014913]
[1722435770955,0.04626136,66473.0,66472.0,0.000913]
[1722435771167,0.14209435,66473.0,66472.0,0.000913]
[1722435771377,0.09116548,66473.0,66472.0,0.000913]
[1722435771566,0.03054307,66473.0,66472.0,0.000913]
[1722435771813,0.0911653,66473.0,66472.0,0.000913]
[1722435772023,0.04658465,66473.0,66472.0,0.151352]
[1722435772256,0.001,66474.0,66473.0,0.150437]
[1722435772477,0.04458465,66479.0,66478.0,0.300851]
[1722435772719,0.002,66478.0,66474.0,0.1437]
[1722435772924,0.04458465,66480.0,66474.0,0.1437]
[1722435772925,0.04657478,66480.0,66479.0,0.300846]
[1722435773170,0.002,66480.0,66479.0,0.451269]
[1722435773350,0.04457478,66482.0,66481.0,0.150418]
[1722435773585,0.04457478,66482.0,66480.0,0.15042]
[1722435773801,0.04657478,66482.0,66481.0,0.01028575]
[1722435774015,0.002,66482.0,66481.0,0.01028575]
[1722435774447,0.002,66482.0,66480.0,0.150421]
[1722435774663,0.002,66481.0,66480.0,0.150421]
[1722435774881,0.002,66480.0,66479.0,0.003]
[1722435775092,0.04655522,66480.0,66479.0,0.003]
[1722435775327,0.002,66480.0,66479.0,0.003]
[1722435775738,0.04455522,66481.0,66475.0,0.150431]
[1722435775739,0.002,66476.0,66475.0,0.150431]
[1722435776168,0.002,66476.0,66475.0,0.451295]
[1722435776380,0.002,66476.0,66475.0,0.150431]
[1722435776614,0.002,66476.0,66475.0,0.451295]
[1722435777004,0.002,66477.0,66476.0,0.15043]
[1722435777428,0.002,66477.0,66476.0,0.45129]
[1722435777661,0.002,66479.0,66477.0,0.150426]
[1722435777886,0.04454676,66482.0,66475.0,0.014]
[1722435778105,0.04654676,66483.0,66481.0,0.150418]
[1722435778347,0.002,66483.0,66482.0,0.150416]
[1722435778571,0.002,66487.0,66482.0,0.07337039]
[1722435778776,0.002,66487.0,66486.0,0.451222]
[1722435778983,0.002,66487.0,66486.0,0.150407]
[1722435779233,0.002,66487.0,66486.0,0.76230041]
[1722435780085,0.002,66487.0,66486.0,0.16067041]
[1722435780308,0.001,66487.0,66486.0,0.76230041]
[1722435780755,0.002,66487.0,66486.0,0.01026341]
[1722435780971,0.002,66487.0,66486.0,0.01926341]
[1722435781180,0.003,66487.0,66486.0,0.012]
[1722435781598,0.003,66487.0,66486.0,0.162407]
[1722435781821,0.003,66487.0,66486.0,0.17263812]
[1722435782461,0.003,66487.0,66486.0,0.47345312]
[1722435782683,0.003,66487.0,66486.0,0.18363812]
[1722435782892,0.003,66487.0,66486.0,0.03323112]
[1722435783136,0.068,66487.0,66486.0,0.01023112]
[1722435783362,0.002,66477.0,66475.0,0.150431]
[1722435783586,0.002,66477.0,66476.0,0.023]
[1722435783807,0.002,66477.0,66476.0,0.16068312]
[1722435784681,0.002,66477.0,66476.0,0.46154312]
[1722435785098,0.002,66477.0,66476.0,0.16068312]
[1722435785302,0.002,66477.0,66476.0,0.46154312]
[1722435785990,0.04655935,66483.0,66480.0,0.150419]
[1722435786201,0.04655935,66483.0,66476.0,0.01025312]
[1722435786202,0.02859058,66482.0,66476.0,0.01025312]
[1722435786409,0.03059058,66482.0,66477.0,0.150427]
[1722435786614,0.002,66480.0,66479.0,0.150423]
[1722435787035,0.04455935,66484.0,66480.0,0.150421]
[1722435787036,0.002,66481.0,66480.0,0.150421]
[1722435787248,0.002,66481.0,66480.0,0.01021869]
[1722435787249,0.03058938,66481.0,66480.0,0.01021869]
[1722435787459,0.002,66478.0,66477.0,0.150427]
[1722435787669,0.002,66478.0,66477.0,0.16065093]
[1722435787902,0.001,66482.0,66477.0,0.16065093]
[1722435787903,0.002,66480.0,66479.0,0.150423]
[1722435788104,0.002,66480.0,66479.0,0.451269]
[1722435788317,0.001,66481.0,66479.0,0.76233544]
[1722435788554,0.001,66481.0,66480.0,0.752105]
[1722435788761,0.001,66481.0,66480.0,1.075947]
[1722435788972,0.001,66481.0,66480.0,1.14786569]
[1722435789178,0.003,66481.0,66480.0,0.84702369]
[1722435789863,0.001,66481.0,66480.0,0.84702369]
[1722435790500,0.002,66484.0,66480.0,0.84702369]
[1722435790501,0.002,66484.0,66483.0,0.451242]
[1722435790710,0.002,66484.0,66483.0,0.150414]
[1722435790955,0.07288997,66486.0,66479.0,0.162335]
[1722435790956,0.002,66480.0,66479.0,0.162335]
[1722435791181,0.03021513,66480.0,66479.0,0.011913]
[1722435791417,0.03021513,66480.0,66479.0,0.000913]
[1722435791639,0.07481711,66480.0,66479.0,0.000913]
[1722435791851,0.002,66480.0,66479.0,0.000913]
[1722435792076,0.09681063,66480.0,66479.0,0.000913]
[1722435792500,0.09781063,66480.0,66479.0,0.011913]
[1722435793341,0.0309243,66480.0,66479.0,0.03414819]
[1722435795090,0.003,66480.0,66479.0,0.03414819]
[1722435795317,0.09225638,66480.0,66479.0,0.03414819]
[1722435795532,0.11947833,66480.0,66479.0,0.03414819]
[1722435795741,0.11947833,66480.0,66479.0,0.18457119]
[1722435795997,0.02822195,66480.0,66479.0,0.50841719]
[1722435796207,0.09516587,66480.0,66479.0,1.11010919]
[1722435796424,0.09516587,66480.0,66479.0,1.25280919]
[1722435796425,0.001,66480.0,66479.0,1.25280919]
[1722435796628,0.04564738,66480.0,66479.0,1.25280919]
[1722435796836,0.001,66480.0,66479.0,1.25280919]
[1722435797037,0.001,66480.0,66479.0,1.39964011]
[1722435797191,0.001,66480.0,66479.0,1.54919183]
[1722435798219,0.04465269,66481.0,66480.0,1.052947]
[1722435798220,0.06697904,66481.0,66480.0,1.052947]
[1722435798418,0.002,66495.0,66494.0,0.451168]
[1722435798629,0.02850803,66495.0,66494.0,0.451168]
[1722435798831,0.16248901,66495.0,66494.0,0.46215528]
[1722435799013,0.16048901,66495.0,66494.0,0.76293428]
[1722435799216,0.02650803,66495.0,66494.0,1.06371328]
[1722435799426,0.02842707,66495.0,66494.0,0.01098728]
[1722435799632,0.02842707,66495.0,66485.0,0.2793]
[1722435799633,0.002,66486.0,66485.0,0.2793]
[1722435799830,0.002,66493.0,66490.0,0.300797]
[1722435800049,0.0259672,66492.0,66491.0,0.451188]
[1722435800562,0.0279672,66492.0,66491.0,0.451188]
[1722435801018,0.0279672,66492.0,66491.0,0.150396]
[1722435801231,0.002,66485.0,66484.0,0.0775]
[1722435801448,0.002,66487.0,66485.0,0.300819]
[1722435801664,0.002,66489.0,66488.0,0.150403]
[1722435801885,0.002,66486.0,66483.0,0.300827]
[1722435802093,0.002,66486.0,66480.0,0.0608]
[1722435802094,0.1116557,66486.0,66485.0,0.150408]
[1722435802304,0.002,66487.0,66486.0,0.150407]
[1722435802548,0.002,66487.0,66486.0,0.451222]
[1722435802766,0.002,66484.0,66482.0,0.150416]
[1722435802986,0.06,66486.0,66482.0,0.150416]
[1722435802987,0.02826358,66483.0,66482.0,0.150416]
[1722435803206,0.002,66482.0,66481.0,0.602518]
[1722435803426,0.02826358,66482.0,66481.0,0.602518]
[1722435803635,0.02826358,66482.0,66481.0,0.150418]
[1722435803841,0.02726358,66482.0,66481.0,0.150418]
[1722435804054,0.002,66483.0,66482.0,0.150416]
[1722435804270,0.002,66480.0,66479.0,0.000913]
[1722435804482,0.07476412,66489.0,66481.0,0.150417]
[1722435804483,0.002,66482.0,66481.0,0.150417]
[1722435804698,0.02838908,66482.0,66481.0,0.150417]
[1722435805091,0.002,66480.0,66479.0,0.301759]
[1722435805314,0.002,66480.0,66479.0,0.452182]
[1722435805531,0.002,66481.0,66480.0,0.150421]
[1722435805954,0.02806536,66481.0,66480.0,0.451263]
[1722435807046,0.02806536,66481.0,66480.0,0.150421]
[1722435807254,0.02606536,66481.0,66480.0,0.451263]
[1722435807466,0.02806536,66481.0,66480.0,0.150421]
[1722435807671,0.02806536,66481.0,66480.0,0.465263]
[1722435808115,0.02806536,66481.0,66480.0,0.766105]
[1722435808116,0.02606536,66481.0,66480.0,0.766105]
[1722435808331,0.02597035,66482.0,66481.0,0.300837]
[1722435808562,0.13420888,66483.0,66482.0,0.451249]
[1722435808844,0.16017868,66483.0,66482.0,0.451249]
[1722435809043,0.16017868,66483.0,66482.0,0.46301903]
[1722435809264,0.16017868,66483.0,66482.0,0.76385203]
[1722435809265,0.0259698,66483.0,66482.0,0.76385203]
[1722435809469,0.002,66486.0,66484.0,0.300824]
[1722435809670,0.02615431,66485.0,66484.0,0.300824]
[1722435809876,0.02615431,66485.0,66484.0,0.46300254]
[1722435810094,0.02615431,66485.0,66484.0,0.76382654]
[1722435810304,0.02815431,66485.0,66484.0,0.46300254]